[Event "FTX Crypto Cup MCCT 2022"]
[Site "Miami"]
[Date "2022.08.11"]
[Round "6.2"]
[White "Duda, Jan-Krzysztof"]
[Black "Praggnanandhaa R"]
[Result "1/2-1/2"]
[ECO "D41"]
[WhiteElo "2750"]
[BlackElo "2648"]
[Annotator "TA"]
[PlyCount "226"]
[EventDate "2022.08.10"]
[EventType "tourn"]
[EventCountry "USA"]
[SourceTitle "playchess.com"]
[Source "ChessBase"]
[SourceQuality "1"]
[TimeControl "900+10"]

{[%evp 90,226,181,8,8,8,8,0,8,8,2707,29943,2041,12468,29986,29987,29988,0,0,0,0,0,0,0,0,0,0,0,0,0,0,0,0,0,0,0,0,0,0,0,0,0,0,0,0,0,2034,2027,2019,2019,2019,2012,2011,2011,2004,2004,1989,1989,1989,1960,1585,1749,29974,29975,29975,29975,29975,29969,29969,29970,29968,29945,29968,29971,29967,29972,29971,29972,29972,29973,29973,29974,29974,29975,29974,29975,29974,29974,29976,29974,29978,29979,29979,29980,29980,0,0,0,0,0,0,0,0,0,0,0,0,0,0,0,0,0,0,0,0,0,0,0,0,0,0,0,0,0,0,0,0,0,0,0,0,0,0,0,0,0,0,0,0]} 1. d4 {[%emt 0:00:00]} Nf6 {[%emt 0:00:00]} 2. c4 {[%emt 0:00:02]} e6 {[%emt 0:00:01]} 3. Nf3 {[%emt 0:00:00]} d5 {[%emt 0:00:01]} 4. Nc3 {[%emt 0:00:01]} c5 {[%emt 0:00:01]} 5. cxd5 {[%emt 0:00:01]} Nxd5 {[%emt 0:00:00]} 6. e4 {[%emt 0:00:06]} Nxc3 {[%emt 0:00:01]} 7. bxc3 {[%emt 0:00:00]} cxd4 {[%emt 0:00:00]} 8. cxd4 {[%emt 0:00:00]} Bb4+ {[%emt 0:00:01]} 9. Bd2 {[%emt 0:00:01]} Bxd2+ {[%emt 0:00:01]} 10. Qxd2 {[%emt 0:00:00]} O-O {[%emt 0:00:00]} 11. Bc4 {[%emt 0:00:01]} Nd7 {[%emt 0:00:01]} 12. O-O {[%emt 0:00:03]} b6 {[%emt 0:00:01]} 13. Rfe1 {[%emt 0:00:02]} Bb7 {[%emt 0:00:01]} 14. Rad1 {[%emt 0:00:01]} Rc8 {[%emt 0:00:01]} 15. Bb3 {[%emt 0:00:01]} Re8 {[%emt 0:00:00]} 16. h3 {[%emt 0:00:28]} h6 {[%emt 0:00:02]} 17. d5 {[%emt 0:00:07]} exd5 {[%emt 0:00:12]} 18. exd5 {[%emt 0:00:00]} Nc5 {[%emt 0:00:24]} 19. d6 {[%emt 0:03:02]} Bxf3 {[%emt 0:01:23]} 20. Rxe8+ {[%emt 0:01:01]} Qxe8 {[%emt 0:00:02]} 21. gxf3 {[%emt 0:00:00]} Qc6 {[%emt 0:02:23]} 22. Bd5 {[%emt 0:01:42]} Qd7 {[%emt 0:00:04]} 23. Qf4 {[%emt 0:00:09]} Rd8 {[%emt 0:03:08]} 24. Kg2 {[%emt 0:03:45]} Kh8 {[%emt 0:03:07]} 25. Qxf7 {[%emt 0:02:51]} Qxd6 {[%emt 0:00:09]} 26. Bb3 {[%emt 0:00:02]} Qb8 {[%emt 0:01:49]} 27. Re1 {[%emt 0:01:17]} Rf8 {[%emt 0:00:29]} 28. Qg6 {[%emt 0:00:02]} Qb7 {[%emt 0:00:51]} 29. Bd1 {[%emt 0:00:06]} Qf7 {[%emt 0:01:13]} 30. Qxf7 {[%emt 0:00:35]} Rxf7 {[%emt 0:00:00]} 31. Re8+ {[%emt 0:00:02]} Kh7 {[%emt 0:00:02]} 32. Bc2+ {[%emt 0:00:03]} g6 {[%emt 0:00:01]} 33. f4 {[%emt 0:00:02]} Kg7 {[%emt 0:00:20]} 34. Kg3 {[%emt 0:00:11]} Rd7 {[%emt 0:00:55]} 35. Rc8 {[%emt 0:00:05]} Rf7 {[%emt 0:01:17]} 36. h4 {[%emt 0:00:17]} Rf8 {[%emt 0:00:39]} 37. Rxf8 {[%emt 0:00:52]} Kxf8 {[%emt 0:00:00]} 38. f5 {[%emt 0:00:01]} gxf5 {[%emt 0:00:08]} 39. Kf4 {[%emt 0:00:02]} Ne6+ {[%emt 0:01:13]} 40. Ke5 {[%emt 0:00:04]} Ke7 {[%emt 0:00:10]} 41. Bxf5 {[%emt 0:00:10]} Nc7 {[%emt 0:00:01]} 42. Bd3 {[%emt 0:01:00]} b5 {[%emt 0:00:33]} 43. f4 {[%emt 0:01:26]} a5 {[%emt 0:00:03]} 44. f5 {[%emt 0:00:08]} b4 {[%emt 0:00:01]} 45. f6+ {[%emt 0:00:02]} Kf8 {[%emt 0:00:02]} 46. Bc4 $2 {[%emt 0:00:40]} (46. Kd6 $1 $18 {[%cal Rd6c7]} Ne8+ 47. Ke5) 46... a4 $11 {[%emt 0:00:07]} 47. Kf5 {[%emt 0:00:12]} Ne8 {[%emt 0:00:14]} 48. Kg6 {[%emt 0:01:34]} Nd6 {[%emt 0:00:06]} 49. Bd5 {[%emt 0:00:04]} Nb5 $2 {[%emt 0:01:04][%mdl 8192]} (49... b3 50. axb3 a3 51. b4 $18) (49... Ne8 $11) 50. Kxh6 $18 {[%emt 0:00:11]} Nc3 {[%emt 0:00:02]} 51. Be6 {[%emt 0:00:07]} Nxa2 {[%emt 0:00:33]} 52. h5 {[%emt 0:00:03]} (52. Bxa2 b3 53. Bb1 a3 54. Kg6 a2 55. Be4 b2 56. Kf5 b1=Q 57. Bxb1 axb1=Q+ 58. Ke5 Qe1+ 59. Kf4 Qxh4+ 60. Ke3 Kf7 61. Kd3 Kxf6 62. Kc3 Qa4 63. Kd2 Kf5 64. Ke3 Qd1 65. Kf2 Kf4 66. Kg2 Qc2+ 67. Kh3 Qe2 68. Kh4 Qh2#) 52... b3 {[%emt 0:00:20]} 53. Kg6 $2 {[%emt 0:00:34]} (53. Kg5 Nc3 54. h6 Ke8 55. h7 Ne4+ 56. Kg6 Nxf6 57. Kxf6 Kd8 58. h8=Q+ Kc7 59. Ke7) 53... Nb4 $11 {[%emt 0:00:14]} (53... Nc3 {leads to mate.} 54. h6 b2 55. Bf5 b1=Q 56. Bxb1 Ke8 57. h7 Ne2 58. h8=Q+ Kd7 59. f7) 54. h6 {[%emt 0:00:02]} b2 {[%emt 0:00:04]} 55. Bf5 {[%emt 0:00:03]} Nc6 {[%emt 0:00:03]} (55... a3 $2 {gets mated.} 56. h7 Ke8 57. h8=Q#) 56. h7 {[%emt 0:00:44]} Ne5+ {[%emt 0:00:02]} 57. Kh5 {[%emt 0:00:00]} Nf7 {[%emt 0:00:02]} 58. Bb1 {[%emt 0:00:01]} Nh8 {[%emt 0:00:27]} 59. Kg5 {[%emt 0:00:07]} Nf7+ {[%emt 0:00:18]} 60. Kf5 {[%emt 0:00:08]} Nh8 {[%emt 0:00:04]} 61. Ba2 {[%emt 0:00:31]} Ke8 {[%emt 0:00:30]} ({Don't do} 61... Nf7 62. Kf4 Nh8 63. Kg5 $14) 62. Kg5 $1 {[%emt 0:00:16]} Kf8 {[%emt 0:00:05]} 63. Kh6 {[%emt 0:00:02]} a3 {[%emt 0:00:19]} 64. Kg5 {[%emt 0:00:05]} Ke8 $1 {[%emt 0:00:07]} 65. Kf4 {[%emt 0:00:29]} Kf8 {[%emt 0:00:05]} 66. Kf5 {[%emt 0:00:10]} Ke8 $1 {[%emt 0:00:01]} (66... Nf7 $2 67. Kg6 Nh8+ 68. Kh6 Nf7+ 69. Bxf7 Kxf7 70. h8=Q $18) 67. Kg5 {[%emt 0:00:10]} Kf8 $2 {[%emt 0:00:23][%mdl 8192]} (67... Nf7+ $11 68. Kf4 Nh8) 68. Kh6 $1 $18 {[%emt 0:00:02]} Nf7+ {[%emt 0:00:05]} 69. Bxf7 {[%emt 0:00:08]} Kxf7 {[%emt 0:00:05]} 70. h8=Q {[%emt 0:00:02]} b1=Q {[%emt 0:00:02]} 71. Qg7+ {[%emt 0:00:02]} Ke6 {[%emt 0:00:02]} 72. Qe7+ {[%emt 0:00:03]} Kd5 {[%emt 0:00:02]} 73. Qxa3 {[%emt 0:00:11]} Qh1+ {[%emt 0:00:35]} 74. Kg7 {[%emt 0:00:04]} Qg2+ {[%emt 0:00:06]} 75. Kf7 $1 {[%emt 0:00:32]} Ke5 {[%emt 0:00:14]} 76. Qc5+ {[%emt 0:00:05]} Kf4 {[%emt 0:00:02]} 77. Kf8 {[%emt 0:00:17]} Qa8+ {[%emt 0:00:07]} 78. Ke7 {[%emt 0:00:01]} Qb7+ {[%emt 0:00:05]} 79. Ke6 {[%emt 0:00:02]} Qe4+ {[%emt 0:00:16]} 80. Kd7 {[%emt 0:00:21]} Qh7+ {[%emt 0:00:12]} 81. Kd6 {[%emt 0:00:19]} Qd3+ {[%emt 0:00:26]} 82. Qd5 {[%emt 0:00:04]} Qa3+ {[%emt 0:00:12] [#]} 83. Kd7 $1 {[%emt 0:00:16]} Qa7+ {[%emt 0:00:02]} 84. Ke6 {[%emt 0:00:15]} Qe3+ {[%emt 0:00:14] [#]} 85. Kf7 $1 {[%emt 0:00:05]} Qa7+ {[%emt 0:00:01]} 86. Kg8 {[%emt 0:00:08]} Qb8+ {[%emt 0:00:14]} 87. Kg7 {[%emt 0:00:03]} Qb2 {[%emt 0:00:01]} 88. Kf7 {[%emt 0:00:23]} Qa1 {[%emt 0:00:26]} 89. Qc4+ {[%emt 0:00:13]} Kg5 {[%emt 0:00:07]} 90. Qc5+ {[%emt 0:00:02]} Kh6 {[%emt 0:00:16]} 91. Qe3+ {[%emt 0:00:05]} Kh5 {[%emt 0:00:02]} 92. Ke7 $2 {[%emt 0:00:22]} (92. Qg3 {mates} Qb1 93. Kf8 Kh6 94. Qf4+ Kh7 95. f7 Qb7 96. Qf5+ Kh6 97. Qf6+ Kh5 98. Kg8) 92... Kg6 $1 $11 {[%emt 0:00:19]} 93. Qe4+ {[%emt 0:00:14]} Kh6 {[%emt 0:00:06]} 94. Qe3+ {[%emt 0:00:12]} Kg6 $1 {[%emt 0:00:02]} 95. Qe4+ {[%emt 0:00:06]} Kh6 {[%emt 0:00:02]} 96. Qh4+ {[%emt 0:00:12]} Kg6 {[%emt 0:00:01]} 97. Qg4+ {[%emt 0:00:01]} Kh6 {[%emt 0:00:00]} 98. Qh3+ {[%emt 0:00:08]} Kg6 $1 {[%emt 0:00:08]} 99. Qg2+ {[%emt 0:00:01]} Kh6 {[%emt 0:00:30]} 100. Qh2+ {[%emt 0:00:30]} Kg6 {[%emt 0:00:01]} 101. Qg3+ {[%emt 0:00:02]} Kh6 {[%emt 0:00:02]} 102. f7 {[%emt 0:00:06]} Qa7+ {[%emt 0:00:09]} 103. Ke6 {[%emt 0:00:06]} Qa2+ {[%emt 0:00:08]} 104. Kf6 {[%emt 0:00:02]} Qa6+ {[%emt 0:00:04]} 105. Ke5 {[%emt 0:00:16]} Qa5+ {[%emt 0:00:09]} 106. Ke4 {[%emt 0:00:16]} Qa8+ {[%emt 0:00:20]} 107. Kf5 {[%emt 0:00:17]} Qc8+ {[%emt 0:00:03]} 108. Kf6 {[%emt 0:00:05]} Qa6+ {[%emt 0:00:03]} 109. Ke7 {[%emt 0:00:03]} Qa7+ {[%emt 0:00:01]} 110. Ke8 {[%emt 0:00:04]} Qa8+ {[%emt 0:00:21]} 111. Kd7 {[%emt 0:00:02]} Qa7+ {[%emt 0:00:00]} 112. Ke6 {[%emt 0:00:06]} Qa2+ {[%emt 0:00:02]} 113. Kf6 {[%emt 0:00:14]} Qa6+ {[%emt 0:00:01]} 1/2-1/2

[Event "FTX Crypto Cup MCCT 2022"]
[Site "Miami"]
[Date "2022.08.11"]
[Round "6.2"]
[White "Le, Quang Liem"]
[Black "Giri, Anish"]
[Result "1-0"]
[ECO "D16"]
[WhiteElo "2722"]
[BlackElo "2760"]
[Annotator "TA"]
[PlyCount "107"]
[EventDate "2022.08.10"]
[EventType "tourn"]
[EventCountry "USA"]
[SourceTitle "playchess.com"]
[Source "ChessBase"]
[SourceQuality "1"]
[TimeControl "900+10"]

{[%evp 16,107,17,3,16,4,14,0,0,0,0,-5,-10,-11,0,0,0,1,14,0,0,-33,-17,-19,0,-19,0,0,108,110,93,102,83,102,92,97,103,97,176,176,205,197,261,225,225,224,220,209,209,186,187,187,187,186,186,181,218,207,245,230,216,237,323,307,299,299,545,520,597,572,572,539,578,570,1083,1027,1046,1035,1003,949,920,991,886,809,12794,12797,10278,12004,6969,2708,1862,1640,895,753]} 1. Nf3 {[%emt 0:00:00]} d5 {[%emt 0:00:00]} 2. d4 {[%emt 0:00:04]} Nf6 {[%emt 0:00:02]} 3. c4 {[%emt 0:00:00]} c6 {[%emt 0:00:00]} 4. Nc3 {[%emt 0:00:04]} dxc4 {[%emt 0:00:02]} 5. a4 {[%emt 0:00:02]} e6 {[%emt 0:00:00]} 6. e3 {[%emt 0:00:03]} c5 {[%emt 0:00:01]} 7. Bxc4 {[%emt 0:00:01]} Nc6 {[%emt 0:00:02]} 8. O-O {[%emt 0:00:01]} cxd4 {[%emt 0:00:01] 8...cxd4 has lost popularity.} 9. exd4 {[%emt 0:00:02]} Be7 {[%emt 0:00:02] D16: Slav Defence: 5 a4: Lines with 5...Bg4 and 5...Na6.} 10. Qe2 {[%emt 0:00:31]} O-O {[%emt 0:00:03]} ({Don't play} 10... Nxd4 11. Nxd4 Qxd4 12. Nb5 $16) 11. Be3 {[%emt 0:00:18]} b6 {[%emt 0:01:17] The position is equal.} 12. Rad1 {[%emt 0:00:09]} Nb4 {[%emt 0:00:01] Inhibits d5.} 13. Ne5 {[%emt 0:00:14]} Bb7 {[%emt 0:00:01]} 14. f4 {[%emt 0:00:03]} g6 {[%emt 0:00:10]} 15. f5 {[%emt 0:00:36]} exf5 {[%emt 0:00:00]} 16. Bh6 {[%emt 0:00:11]} Nfd5 $1 {[%emt 0:00:20][%cal Oa8c8]} 17. Bxf8 {[%emt 0:04:46]} Bxf8 {[%emt 0:00:11] [#]} 18. Rfe1 $146 {[%emt 0:00:40]} ({Predecessor:} 18. Nd3 Rc8 19. Nxb4 Nxb4 20. d5 Qh4 21. Bb3 Bc5+ 22. Kh1 Bd6 23. g3 Bxg3 24. Nb5 {1-0 (42) Davtyan,A (2488)-Mammadzada,G (2454) Sharjah 2022}) 18... Rc8 {[%emt 0:01:26][%mdl 1024] Black has compensation.} 19. Bb3 {[%emt 0:01:12]} Rc7 {[%emt 0:07:55]} 20. Qf2 {[%emt 0:00:36]} a6 {[%emt 0:00:21] Inhibits Nb5.} 21. Rc1 {[%emt 0:03:56]} Bh6 {[%emt 0:04:26] [#]} (21... Re7 $11) 22. Nxd5 $1 $16 {[%emt 0:00:09] White now steadily converts the win.} Bxd5 {[%emt 0:00:40] A strong pair of Bishops.} 23. Rxc7 {[%emt 0:00:06]} Qxc7 {[%emt 0:00:00]} 24. Bxd5 {[%emt 0:00:07]} Nxd5 {[%emt 0:00:00]} 25. Kh1 {[%emt 0:00:52]} Kg7 {[%emt 0:00:05]} 26. Qe2 {[%emt 0:00:34]} Qc8 {[%emt 0:01:27] [#]} (26... Qb7 $16) 27. Qc4 $1 $18 {[%emt 0:00:10]} Qxc4 {[%emt 0:00:37]} 28. Nxc4 {[%emt 0:00:00][%mdl 4096] Endgame KRN-KBN} b5 {[%emt 0:00:17]} (28... Bf4 {was worth a try.} 29. g3 Bc7) 29. axb5 {[%emt 0:00:00]} axb5 {[%emt 0:00:00]} 30. Nd6 {[%emt 0:00:06]} Be3 {[%emt 0:00:28]} 31. Ne8+ {[%emt 0:01:11]} Kf8 {[%emt 0:00:05] [#]} 32. Nf6 {[%emt 0:00:03][%mdl 512]} Nxf6 {[%emt 0:00:09]} 33. Rxe3 {[%emt 0:00:01] KR-KN} Ne4 {[%emt 0:00:00]} 34. Ra3 {[%emt 0:01:04]} Ke7 {[%emt 0:00:16]} 35. Ra6 {[%emt 0:00:26]} Nf2+ {[%emt 0:00:21]} 36. Kg1 {[%emt 0:00:02]} Nd3 {[%emt 0:00:00] [#]} 37. b3 $1 {[%emt 0:00:26]} Nc1 {[%emt 0:00:02]} 38. Kf2 {[%emt 0:00:01] Against Ne2. Strongly threatening Ke3.} f4 {[%emt 0:00:14]} 39. Kf3 {[%emt 0:00:44]} Nxb3 {[%emt 0:00:01]} 40. Ke4 {[%emt 0:00:03]} ({Resist} 40. Kxf4 $6 Nxd4 41. Ke5 Nf5 42. Ra7+ Kf8 $16) 40... Nd2+ $2 {[%emt 0:00:31]} (40... f3 {was called for.} 41. gxf3 Nd2+ 42. Ke3 Nc4+ 43. Kd3 h6) 41. Kxf4 {[%emt 0:00:03] White is clearly winning.} b4 {[%emt 0:00:15]} 42. Rb6 {[%emt 0:00:31]} b3 {[%emt 0:00:03]} 43. h3 {[%emt 0:00:13]} Kd7 {[%emt 0:00:16]} 44. Rb4 {[%emt 0:00:01] aiming for Ke3.} Kc6 {[%emt 0:00:08]} 45. Ke3 {[%emt 0:00:01]} Nf1+ {[%emt 0:00:02]} 46. Kd3 {[%emt 0:00:03]} Ng3 {[%emt 0:00:01]} 47. Rxb3 {[%emt 0:00:02]} Nf5 {[%emt 0:00:00]} 48. Ke4 {[%emt 0:00:14]} f6 {[%emt 0:00:12]} 49. d5+ {[%emt 0:00:03]} Kc5 {[%emt 0:00:13]} 50. Rc3+ {[%emt 0:00:02]} Kd6 {[%emt 0:00:00]} 51. Rc6+ {[%emt 0:00:02]} Ke7 {[%emt 0:00:00]} 52. g4 {[%emt 0:00:10]} (52. Re6+ $142 Kf7 53. g4) 52... Nd6+ {[%emt 0:00:05]} 53. Kd4 {[%emt 0:00:01]} Kd7 {[%emt 0:00:12] Against Rc7+} 54. Ra6 {[%emt 0:00:04] Weighted Error Value: White=0.05 (flawless) /Black=0.31} 1-0

[Event "FTX Crypto Cup MCCT 2022"]
[Site "Miami"]
[Date "2022.08.11"]
[Round "6.3"]
[White "Firouzja, Alireza"]
[Black "Carlsen, Magnus"]
[Result "1/2-1/2"]
[ECO "B22"]
[WhiteElo "2793"]
[BlackElo "2864"]
[Annotator "TA"]
[PlyCount "93"]
[EventDate "2022.08.10"]
[EventType "tourn"]
[EventCountry "USA"]
[SourceTitle "playchess.com"]
[Source "ChessBase"]
[SourceQuality "1"]
[TimeControl "900+10"]

{[%evp 9,93,3,8,4,16,-25,0,0,13,0,6,-7,0,0,0,0,-2,-21,-56,-53,27,29,11,16,9,-24,-22,-48,-49,-35,145,-94,-61,-137,0,0,0,0,0,0,0,-17,0,0,0,0,0,0,29,39,64,0,0,0,0,0,0,0,0,0,0,0,0,0,0,0,0,0,0,0,0,0,0,0,0,0,0,0,0,0,0,0,0,0,0,0]} 1. e4 {[%emt 0:00:00]} c5 {[%emt 0:00:00]} 2. Nf3 {[%emt 0:00:02]} Nc6 {[%emt 0:00:02]} 3. Bb5 {[%emt 0:00:02]} e5 {[%emt 0:00:02]} 4. c3 {[%emt 0:00:29]} a6 {[%emt 0:00:21]} 5. Bc4 {[%emt 0:01:20]} Nf6 {[%emt 0:00:09] [#]} 6. d3 $146 {[%emt 0:02:19] B22: Sicilian: 2 c3.} ({Predecessor:} 6. Ng5 d5 7. exd5 Nxd5 8. Qf3 Qxg5 9. Bxd5 Qf6 10. Qxf6 gxf6 11. d3 Be6 12. Bxc6+ bxc6 {0-1 (77) Kamer,K (2371)-Ozer,O (2323) Istanbul 2022}) 6... Be7 {[%emt 0:01:23]} 7. a4 {[%emt 0:00:49]} O-O {[%emt 0:00:05]} 8. O-O {[%emt 0:00:01]} Rb8 {[%emt 0:03:00]} 9. Re1 {[%emt 0:01:14]} b5 {[%emt 0:00:15]} 10. Bd5 {[%emt 0:00:42]} Qc7 $1 {[%emt 0:00:01]} 11. Nbd2 {[%emt 0:00:06]} d6 {[%emt 0:00:26]} 12. axb5 {[%emt 0:01:12]} axb5 {[%emt 0:00:04]} 13. Nf1 {[%emt 0:00:02]} Nxd5 {[%emt 0:03:48]} 14. exd5 {[%emt 0:00:02]} Na7 {[%emt 0:00:11]} ({Black should try} 14... Nd8 $15) 15. d4 $11 {[%emt 0:00:41]} exd4 {[%emt 0:00:04]} 16. cxd4 {[%emt 0:00:01]} c4 {[%emt 0:00:01]} 17. Bf4 {[%emt 0:00:09]} Bf5 {[%emt 0:00:58]} 18. Ng3 {[%emt 0:01:08]} Bd3 {[%emt 0:00:13]} 19. Nd2 {[%emt 0:01:55]} b4 $2 {[%emt 0:03:14] [#]} (19... Rbe8 $15 {keeps the upper hand.}) 20. Nde4 $2 {[%emt 0:01:25]} (20. Nxc4 $1 $16 {[%mdl 512] is forced if you want to stay better.} Bxc4 21. Nf5) 20... Qd7 $1 $17 {[%emt 0:00:34]} 21. Qh5 {[%emt 0:00:36]} (21. Nxd6 $15 Bxd6 22. Rxa7 Qxa7 23. Bxd6) 21... f5 {[%emt 0:00:01]} (21... g6 $1 $17 {[%cal Rg6h5]} 22. Qf3 Nb5) 22. Nxd6 $1 $11 {[%emt 0:02:07]} Bxd6 {[%emt 0:00:27]} 23. Bxd6 {[%emt 0:00:02]} Qxd6 {[%emt 0:00:09]} 24. Rxa7 {[%emt 0:00:01]} Qh6 {[%emt 0:02:10]} (24... Qxd5 25. Ree7 Qxd4 26. Qg5 Kh8 27. Rxg7 f4 {[#]} 28. Qh6 $1 (28. Qh4 Qxg7 29. Rxg7 Kxg7 $18) (28. Qh4 Qxg7 29. Rxg7 Kxg7 $18)) 25. Qd1 {[%emt 0:01:41]} Rfe8 {[%emt 0:00:06]} 26. Rae7 {[%emt 0:00:50]} Rxe7 {[%emt 0:00:07]} 27. Rxe7 {[%emt 0:00:00]} Qd6 {[%emt 0:00:08]} 28. Re5 {[%emt 0:00:24]} b3 {[%emt 0:00:01]} 29. Qe1 {[%emt 0:00:20]} ({Avoid the trap} 29. Nxf5 $2 Bxf5 30. Rxf5 c3 $19) 29... h6 {[%emt 0:00:17]} 30. h4 {[%emt 0:00:15]} ({Don't play} 30. Nxf5 Bxf5 31. Rxf5 Qg6 $11) (30. Nh5 $1 $14) 30... Qb4 {[%emt 0:00:11] The position is equal.} 31. Qe3 {[%emt 0:00:09] Strongly threatening Nh5.} f4 $1 {[%emt 0:00:18]} 32. Qxf4 {[%emt 0:00:02] Black must now prevent Nh5.} c3 $1 {[%emt 0:00:03]} 33. Re7 $1 {[%emt 0:00:14] White threatens Qf7+ and mate.} Qxe7 {[%emt 0:01:20]} 34. Qxb8+ {[%emt 0:00:02][%mdl 4096] Endgame KQB-KQN} Qf8 {[%emt 0:00:13]} 35. Qxb3 {[%emt 0:00:10]} c2 {[%emt 0:00:01]} 36. Ne2 {[%emt 0:00:17]} Bxe2 {[%emt 0:00:01]} 37. d6+ {[%emt 0:00:11]} Kh8 {[%emt 0:00:23]} 38. Qxc2 {[%emt 0:00:01]} Bb5 {[%emt 0:00:03]} 39. Qc5 {[%emt 0:00:18] aiming for d7.} Bd7 {[%emt 0:00:07]} 40. b4 {[%emt 0:00:08]} Qe8 {[%emt 0:00:02]} 41. Qe5 {[%emt 0:00:06] Against Qe1+} Qg6 {[%emt 0:00:05]} 42. Kh2 {[%emt 0:00:19]} Qb1 {[%emt 0:00:03]} 43. Qe7 {[%emt 0:00:07]} Qf5 {[%emt 0:00:02]} 44. Kg1 {[%emt 0:00:09]} Qb1+ {[%emt 0:00:01]} 45. Kh2 {[%emt 0:00:01]} Qf5 {[%emt 0:00:01]} 46. Kg1 {[%emt 0:00:07]} Qb1+ {[%emt 0:00:48]} 47. Kh2 {[%emt 0:00:02] Weighted Error Value: White=0.16 (very precise) /Black=0.16 (very precise)} 1/2-1/2